bitfinex/quotes_BTCUSD_20241020
["timestamp","ask_amount","ask_price","bid_price","bid_amount"]
[1729413426941,0.4983044,68452.0,68451.0,0.001654]
[1729413429774,0.4933044,68452.0,68451.0,0.001654]
[1729413432109,0.3964044,68452.0,68451.0,0.001654]
[1729413436618,0.4871044,68452.0,68451.0,0.001654]
[1729413439199,0.3410174,68452.0,68447.0,0.002604]
[1729413439413,0.146096,68448.0,68447.0,0.002604]
[1729413439651,0.38928809,68448.0,68447.0,0.002604]
[1729413446956,0.5041497,68448.0,68447.0,0.002604]
[1729413447207,0.5998497,68448.0,68447.0,0.002604]
[1729413447397,0.6824497,68448.0,68447.0,0.002604]
[1729413447636,0.6844497,68448.0,68447.0,0.002604]
[1729413450106,0.6824497,68448.0,68447.0,0.002604]
[1729413451444,0.6844497,68448.0,68447.0,0.002604]
[1729413452312,0.6824497,68448.0,68447.0,0.002604]
[1729413452555,0.726266,68448.0,68447.0,0.002604]
[1729413453199,0.6824497,68448.0,68447.0,0.002604]
[1729413453406,0.6824497,68448.0,68447.0,0.004258]
[1729413455013,0.6844497,68448.0,68447.0,0.004258]
[1729413456723,0.6824497,68448.0,68447.0,0.004258]
[1729413457356,0.6844497,68448.0,68447.0,0.004258]
[1729413464903,0.6852767,68448.0,68447.0,0.004258]
[1729413467409,0.56841509,68448.0,68447.0,0.004258]
[1729413468099,0.57041509,68448.0,68447.0,0.004258]
[1729413468781,0.56841509,68448.0,68447.0,0.004258]
[1729413469418,0.57041509,68448.0,68447.0,0.004258]
[1729413474216,0.63716241,68448.0,68447.0,0.004258]
[1729413474424,0.59341509,68448.0,68447.0,0.004258]
[1729413474635,0.79014638,68448.0,68447.0,0.004258]
[1729413474845,0.72451949,68448.0,68447.0,0.004258]
[1729413475291,0.81202201,68448.0,68447.0,0.004258]
[1729413475717,0.80202201,68448.0,68447.0,0.004258]
[1729413475932,0.82389764,68448.0,68447.0,0.004258]
[1729413476151,0.87881306,68448.0,68447.0,0.004258]
[1729413476999,0.76943491,68448.0,68447.0,0.004258]
[1729413477221,0.87879577,68448.0,68447.0,0.004258]
[1729413477420,0.76943491,68448.0,68447.0,0.004258]
[1729413478154,0.87878781,68448.0,68447.0,0.004258]
[1729413481429,0.8787757,68448.0,68447.0,0.004258]
[1729413481670,0.76943491,68448.0,68447.0,0.004258]
[1729413483950,0.86943491,68448.0,68447.0,0.004258]
[1729413485026,0.86943491,68448.0,68432.0,0.21907885]
[1729413485027,0.233526,68434.0,68433.0,0.21907885]
[1729413485267,0.59533732,68434.0,68433.0,0.21907885]
[1729413485690,0.59533732,68434.0,68428.0,0.0327]
[1729413485691,0.158136,68429.0,68428.0,0.0327]
[1729413485997,0.49694732,68429.0,68428.0,0.0327]
[1729413489560,0.49694732,68429.0,68428.0,0.034354]
[1729413489819,0.64416075,68429.0,68428.0,0.034354]
[1729413490438,0.64216075,68429.0,68428.0,0.034354]
[1729413491060,0.66329947,68429.0,68428.0,0.034354]
[1729413499246,0.51608604,68429.0,68428.0,0.034354]
[1729413499444,0.39964732,68429.0,68428.0,0.034354]
[1729413508580,0.49694732,68429.0,68428.0,0.034354]
[1729413509055,0.46694732,68429.0,68428.0,0.034354]
[1729413514328,0.46894732,68429.0,68428.0,0.034354]
[1729413514949,0.46694732,68429.0,68428.0,0.034354]
[1729413515851,0.46694732,68429.0,68428.0,0.001654]
[1729413518636,0.46894732,68429.0,68428.0,0.001654]
[1729413519347,0.46694732,68429.0,68428.0,0.001654]
[1729413519558,0.465948,68429.0,68428.0,0.001654]
[1729413519687,0.467948,68429.0,68428.0,0.001654]
[1729413521485,0.465948,68429.0,68428.0,0.001654]
[1729413524176,0.50974359,68429.0,68428.0,0.001654]
[1729413524601,0.50977316,68429.0,68428.0,0.001654]
[1729413525176,0.51060116,68429.0,68428.0,0.001654]
[1729413526955,0.55642632,68429.0,68428.0,0.001654]
[1729413527162,0.468776,68429.0,68428.0,0.001654]
[1729413527579,0.57833891,68429.0,68428.0,0.001654]
[1729413527800,0.468776,68429.0,68428.0,0.001654]
[1729413529706,0.466776,68429.0,68428.0,0.001654]
[1729413531526,0.468776,68429.0,68428.0,0.001654]
[1729413533163,0.55643034,68429.0,68428.0,0.001654]
[1729413541620,0.63853034,68429.0,68428.0,0.001654]
[1729413543152,0.63851056,68429.0,68428.0,0.001654]
[1729413545936,0.78746971,68429.0,68428.0,0.001654]
[1729413546565,0.80937365,68429.0,68428.0,0.001654]
[1729413546784,0.69983515,68429.0,68428.0,0.001654]
[1729413547217,0.66041423,68429.0,68428.0,0.001654]
[1729413547419,0.550876,68429.0,68428.0,0.001654]
[1729413548713,0.66040433,68429.0,68428.0,0.001654]
[1729413551127,0.550876,68429.0,68428.0,0.001654]
[1729413551563,0.66039392,68429.0,68428.0,0.001654]
[1729413552643,0.550876,68429.0,68428.0,0.001654]
[1729413553059,0.66039392,68429.0,68428.0,0.001654]
[1729413554544,0.71801084,68429.0,68428.0,0.001654]
[1729413554782,0.68645412,68429.0,68428.0,0.001654]
[1729413554999,0.6288372,68429.0,68428.0,0.001654]
[1729413564524,0.6188372,68429.0,68428.0,0.001654]
[1729413564711,0.6288372,68429.0,68428.0,0.001654]
[1729413567895,0.6188372,68429.0,68428.0,0.001654]
[1729413568106,0.6288372,68429.0,68428.0,0.001654]
[1729413570539,0.6188372,68429.0,68428.0,0.001654]
[1729413574970,0.5367372,68429.0,68428.0,0.001654]
[1729413575656,0.491776,68429.0,68428.0,0.001654]
[1729413577590,0.568476,68429.0,68428.0,0.001654]
[1729413577810,0.61344503,68429.0,68428.0,0.001654]
[1729413597473,0.51174503,68429.0,68428.0,0.001654]
[1729413597669,0.5117704,68429.0,68428.0,0.001654]
[1729413597920,0.466776,68429.0,68428.0,0.001654]
[1729413598086,0.5117704,68429.0,68428.0,0.001654]
[1729413598295,0.468776,68429.0,68428.0,0.001654]
[1729413602045,0.466776,68429.0,68428.0,0.001654]
[1729413602255,0.369476,68429.0,68428.0,0.001654]
[1729413611512,0.374476,68429.0,68428.0,0.001654]
[1729413611721,0.369476,68429.0,68428.0,0.001654]
[1729413621489,0.463476,68429.0,68428.0,0.001654]
[1729413621837,0.57304264,68429.0,68428.0,0.001654]
[1729413622864,0.56804227,68429.0,68428.0,0.001654]
[1729413623096,0.5461273,68429.0,68428.0,0.001654]
[1729413623470,0.364476,68429.0,68428.0,0.001654]
[1729413623676,0.4521273,68429.0,68428.0,0.001654]
[1729413623871,0.364476,68429.0,68428.0,0.001654]
[1729413625251,0.4521273,68429.0,68428.0,0.001654]
[1729413626091,0.364476,68429.0,68428.0,0.001654]
[1729413626560,0.43020418,68429.0,68428.0,0.001654]
[1729413626734,0.364476,68429.0,68428.0,0.001654]
[1729413628617,0.43020196,68429.0,68428.0,0.001654]
[1729413630726,0.43020024,68429.0,68428.0,0.001654]
[1729413631488,0.364476,68429.0,68428.0,0.001654]
[1729413631695,0.43019953,68429.0,68428.0,0.001654]
[1729413632364,0.364476,68429.0,68428.0,0.001654]
[1729413634532,0.43019968,68429.0,68428.0,0.001654]
[1729413634739,0.364476,68429.0,68428.0,0.001654]
[1729413635777,0.40829095,68429.0,68428.0,0.001654]
[1729413636409,0.364476,68429.0,68428.0,0.001654]
[1729413643172,0.464276,68429.0,68428.0,0.001654]
[1729413644903,0.50809095,68429.0,68428.0,0.001654]
[1729413645305,0.58469095,68429.0,68428.0,0.001654]
[1729413651631,0.58468743,68429.0,68428.0,0.001654]
[1729413652029,0.540876,68429.0,68428.0,0.001654]
[1729413653486,0.58468743,68429.0,68428.0,0.001654]
[1729413656942,0.58968743,68429.0,68428.0,0.001654]
[1729413657135,0.545876,68429.0,68428.0,0.001654]
[1729413659808,0.69483515,68429.0,68428.0,0.001654]
[1729413661271,0.545876,68429.0,68428.0,0.001654]
[1729413664999,0.61160996,68429.0,68428.0,0.001654]
[1729413669716,0.6116303,68429.0,68428.0,0.001654]
[1729413674217,0.545876,68429.0,68428.0,0.001654]
[1729413681834,0.65548553,68429.0,68428.0,0.001654]
[1729413682701,0.547876,68429.0,68428.0,0.001654]
[1729413683585,0.69483515,68429.0,68428.0,0.001654]
[1729413683810,0.71983515,68429.0,68428.0,0.001654]
[1729413684254,0.76482757,68429.0,68428.0,0.001654]
[1729413684485,0.71983515,68429.0,68428.0,0.001654]
[1729413685390,0.76481663,68429.0,68428.0,0.001654]
[1729413692411,0.71983515,68429.0,68428.0,0.001654]
[1729413692871,0.7647719,68429.0,68428.0,0.001654]
[1729413693515,0.71983515,68429.0,68428.0,0.00101713]
[1729413693968,0.76476908,68429.0,68428.0,0.00101713]
[1729413694383,0.71983515,68429.0,68428.0,0.00101713]
[1729413694578,0.76476674,68429.0,68428.0,0.00101713]
[1729413695560,0.71983515,68429.0,68428.0,0.00101713]
[1729413706161,0.76476254,68429.0,68428.0,0.00101713]
[1729413707042,0.71983515,68429.0,68428.0,0.00101713]
[1729413708516,0.76476791,68429.0,68428.0,0.00101713]
[1729413708728,0.71983515,68429.0,68428.0,0.00101713]
[1729413708972,0.76476789,68429.0,68428.0,0.00101713]
[1729413727497,0.89618361,68429.0,68428.0,0.00101713]
[1729413729363,0.76476789,68429.0,68428.0,0.00101713]
[1729413787953,0.61580874,68429.0,68428.0,0.00101713]
[1729413856229,0.72680874,68429.0,68428.0,0.00101713]
[1729413857091,0.87383709,68429.0,68428.0,0.00101713]
[1729413857314,0.72680874,68429.0,68428.0,0.00101713]
[1729413857532,0.72880874,68429.0,68428.0,0.00101713]
[1729413857745,0.87776789,68429.0,68428.0,0.00101713]
[1729413858426,0.87676789,68429.0,68428.0,0.00101713]
[1729413858829,0.87876789,68429.0,68428.0,0.00101713]
[1729413861455,0.87676789,68429.0,68428.0,0.00101713]
[1729413862325,0.87876789,68429.0,68428.0,0.00101713]
[1729413863722,0.87676789,68429.0,68428.0,0.00101713]
[1729413864153,0.87876789,68429.0,68428.0,0.00101713]
[1729413865327,1.02471644,68429.0,68428.0,0.00101713]
[1729413865544,1.02271644,68429.0,68428.0,0.00101713]
[1729413865781,1.02371644,68429.0,68428.0,0.00101713]
[1729413866703,1.02471644,68429.0,68428.0,0.00101713]
[1729413867135,1.02371644,68429.0,68428.0,0.00101713]
[1729413867982,1.02471644,68429.0,68428.0,0.00101713]
[1729413870273,0.87676789,68429.0,68428.0,0.00101713]
[1729413873035,0.72780874,68429.0,68428.0,0.00101713]
[1729413874918,0.77618853,68429.0,68428.0,0.00101713]
[1729413875559,0.76618853,68429.0,68428.0,0.00101713]
[1729413875764,0.77618853,68429.0,68428.0,0.00101713]
[1729413880342,0.76618853,68429.0,68428.0,0.00101713]
[1729413880552,0.77618853,68429.0,68428.0,0.00101713]
[1729413882348,0.76618853,68429.0,68428.0,0.00101713]
[1729413882548,0.77618853,68429.0,68428.0,0.00101713]
[1729413886692,0.77418853,68429.0,68428.0,0.00101713]
[1729413887349,0.92314768,68429.0,68428.0,0.00101713]
[1729413887801,0.92214768,68429.0,68428.0,0.00101713]
[1729413888245,0.92114768,68429.0,68428.0,0.00101713]
[1729413888457,0.77218853,68429.0,68428.0,0.00101713]
[1729413889717,0.77418853,68429.0,68428.0,0.00101713]
[1729413890127,0.76418853,68429.0,68428.0,0.00101713]
[1729413890332,0.77418853,68429.0,68428.0,0.00101713]
[1729413890537,0.92314768,68429.0,68428.0,0.00101713]
[1729413894433,0.77418853,68429.0,68428.0,1.3e-07]
[1729413894672,0.9220772,68429.0,68428.0,1.3e-07]
[1729413895530,0.77418853,68429.0,68428.0,1.3e-07]
[1729413895744,0.77718853,68429.0,68428.0,1.3e-07]
[1729413895983,0.92614768,68429.0,68428.0,1.3e-07]
[1729413896658,0.92914768,68429.0,68428.0,1.3e-07]
[1729413898502,0.156171,68413.0,68412.0,0.17404098]
[1729413898717,0.47023962,68413.0,68412.0,0.17404098]
[1729413898935,0.156177,68410.0,68409.0,0.131654]
[1729413899144,0.40000683,68410.0,68409.0,0.131654]
[1729413899789,0.44384244,68410.0,68409.0,0.131654]
[1729413900885,0.40000683,68410.0,68409.0,0.131654]
[1729413901365,0.44384244,68410.0,68409.0,0.125704]
[1729413901591,0.40000683,68410.0,68409.0,0.125704]
[1729413902664,0.44384978,68410.0,68409.0,0.125704]
[1729413903748,0.44384978,68410.0,68409.0,0.131704]
[1729413904171,0.44385027,68410.0,68409.0,0.131704]
[1729413905742,0.40000683,68410.0,68409.0,0.131704]
[1729413906170,0.40000683,68410.0,68409.0,0.125704]
[1729413906640,0.44385022,68410.0,68409.0,0.125704]
[1729413907726,0.44385239,68410.0,68409.0,0.125704]
[1729413908579,0.40000683,68410.0,68409.0,0.125704]
[1729413909952,0.55607192,68410.0,68409.0,0.125704]
[1729413910174,0.58990683,68410.0,68409.0,0.125704]
[1729413910849,0.59190683,68410.0,68409.0,0.125704]
[1729413912173,0.59190683,68410.0,68409.0,0.127358]
[1729413917700,0.70137573,68410.0,68409.0,0.127358]
[1729413917906,0.85033488,68410.0,68409.0,0.127358]
[1729413918669,0.70137573,68410.0,68409.0,0.127358]
[1729413920456,0.59190683,68410.0,68409.0,0.127358]
[1729413922319,0.70137573,68410.0,68409.0,0.127358]
[1729413924612,0.59273483,68410.0,68409.0,0.127358]
[1729413924831,0.70215083,68410.0,68409.0,0.127358]
[1729413925044,0.74169398,68410.0,68409.0,0.127358]
[1729413925458,0.85110862,68410.0,68409.0,0.127358]
[1729413926079,0.74169398,68410.0,68409.0,0.127358]
[1729413933066,0.84169398,68410.0,68409.0,0.127358]
[1729413933499,0.88660997,68410.0,68409.0,0.127358]
[1729413939966,1.04812486,68410.0,68409.0,0.127358]
[1729413940605,0.89916571,68410.0,68409.0,0.127358]
[1729413942916,0.89918246,68410.0,68409.0,0.127358]
[1729413945715,0.63028246,68410.0,68409.0,0.127358]
[1729413945963,0.60728246,68410.0,68409.0,0.127358]
[1729413946168,0.71669461,68410.0,68409.0,0.127358]
[1729413946407,0.60734436,68410.0,68409.0,0.127358]
[1729413946614,0.64989588,68410.0,68409.0,0.127358]
[1729413946795,0.40083483,68410.0,68409.0,0.127358]
[1729413947003,0.42383483,68410.0,68409.0,0.127358]
[1729413947444,0.58540155,68410.0,68409.0,0.127358]
[1729413948070,0.67293096,68410.0,68409.0,0.127358]
[1729413948393,0.67293971,68410.0,68409.0,0.127358]
[1729413949465,0.67296552,68410.0,68409.0,0.127358]
[1729413950502,0.67298518,68410.0,68409.0,0.127358]
[1729413951338,0.58541925,68410.0,68409.0,0.127358]
[1729413951755,0.7343784,68410.0,68409.0,0.127358]
[1729413952615,0.69485208,68410.0,68409.0,0.127358]
[1729413953477,0.58541925,68410.0,68409.0,0.127358]
[1729413954147,0.69502915,68410.0,68409.0,0.127358]
[1729413954368,0.58552482,68410.0,68409.0,0.127358]
[1729413955551,0.56252482,68410.0,68409.0,0.127358]
[1729413956015,0.58552482,68410.0,68409.0,0.127358]
[1729413957122,0.58552482,68410.0,68409.0,0.300458]
[1729413957123,0.56252482,68410.0,68409.0,0.300458]
[1729413957351,0.40083483,68410.0,68409.0,0.300458]
[1729413957556,0.40083483,68410.0,68409.0,0.31269343]
[1729413957782,0.40083483,68410.0,68409.0,0.300458]
[1729413958015,0.40083483,68410.0,68409.0,0.31266651]
[1729413958745,0.40083483,68410.0,68409.0,0.21916651]
[1729413959191,0.40083483,68410.0,68409.0,0.206958]
[1729413959399,0.40083483,68410.0,68409.0,0.21919334]
[1729413960022,0.40083483,68410.0,68409.0,0.13959334]
[1729413961047,0.44462116,68410.0,68409.0,0.14102754]
[1729413961293,0.40083483,68410.0,68409.0,0.127358]
[1729413961740,0.46651432,68410.0,68409.0,0.127358]
[1729413962380,0.46651332,68410.0,68409.0,0.127358]
[1729413963460,0.61547247,68410.0,68409.0,0.127358]
[1729413963870,0.40083483,68410.0,68409.0,0.11536513]
[1729413964080,0.65002644,68410.0,68409.0,0.11536513]
[1729413964336,0.65002053,68410.0,68409.0,0.11536513]
[1729413964560,0.40083483,68410.0,68409.0,0.11536513]
[1729413965293,0.52403483,68410.0,68409.0,0.11536513]
[1729413965394,0.7732146,68410.0,68409.0,0.11536513]
[1729413965637,0.88990202,68410.0,68409.0,0.11536513]
[1729413965850,0.80233642,68410.0,68409.0,0.11536513]
[1729413971014,0.8023436,68410.0,68409.0,0.11536513]
[1729413974010,0.8043436,68410.0,68409.0,0.11536513]
[1729413976368,0.64272225,68410.0,68409.0,0.11536513]
[1729413976784,0.80435505,68410.0,68409.0,0.11536513]
[1729413980101,0.84930576,68410.0,68409.0,0.11536513]
[1729413980328,0.80435505,68410.0,68409.0,0.11536513]
[1729413981037,0.84930944,68410.0,68409.0,0.11536513]
[1729413981373,0.80436279,68410.0,68409.0,0.11536513]
[1729413981595,0.84931639,68410.0,68409.0,0.11536513]
[1729413981807,0.93071639,68410.0,68409.0,0.11536513]
[1729413984957,1.0620814,68410.0,68409.0,0.11536513]
[1729413986077,1.06211709,68410.0,68409.0,0.11536513]
[1729413987351,1.04073608,68410.0,68409.0,0.11536513]
[1729413987763,1.04073947,68410.0,68409.0,0.11536513]
[1729413991024,1.04073586,68410.0,68409.0,0.11536513]
[1729413998609,0.92204844,68410.0,68409.0,0.09536513]
[1729413998810,0.92004844,68410.0,68409.0,0.09536513]
[1729413999025,0.92004844,68410.0,68409.0,0.07986513]
[1729413999486,0.91004844,68410.0,68409.0,0.07986513]
[1729413999741,0.92004844,68410.0,68409.0,0.00838513]
[1729414000399,0.92000231,68410.0,68409.0,0.00838513]
[1729414000777,0.92199854,68410.0,68409.0,0.00838513]
[1729414002164,1.07095769,68410.0,68409.0,0.00838513]
[1729414003092,1.06895769,68410.0,68409.0,0.00838513]
[1729414003322,1.20029797,68410.0,68409.0,0.00838513]
[1729414003637,1.06895769,68410.0,68409.0,0.00838513]
[1729414004309,1.20029797,68410.0,68409.0,0.00838513]
[1729414005393,1.06895769,68410.0,68409.0,0.00838513]
[1729414007006,0.92199854,68410.0,68409.0,0.00838513]
[1729414009651,1.06975635,68410.0,68409.0,0.00838513]
[1729414010095,1.06997692,68410.0,68409.0,0.00838513]
[1729414012281,0.92211376,68410.0,68409.0,0.00838513]
[1729414014007,1.07001453,68410.0,68409.0,0.00838513]
[1729414014221,1.21897368,68410.0,68409.0,0.00838513]
[1729414014451,1.07107291,68410.0,68409.0,0.00838513]
[1729414016248,1.07307291,68410.0,68409.0,0.00838513]
[1729414016460,1.07507291,68410.0,68409.0,0.00838513]
[1729414023331,1.07307291,68410.0,68409.0,0.00838513]
[1729414024180,1.07207291,68410.0,68409.0,0.00838513]
[1729414024387,1.07215829,68410.0,68409.0,0.00838513]
[1729414025443,1.07315829,68410.0,68409.0,0.00838513]
[1729414027634,1.07315829,68410.0,68396.0,0.21907885]
[1729414027635,0.01,68397.0,68396.0,0.21077198]
[1729414027910,0.56624998,68397.0,68396.0,0.21077198]
[1729414028140,0.156207,68396.0,68395.0,2.0]
[1729414028341,0.67585477,68396.0,68395.0,1.99059375]
[1729414029400,0.67585477,68396.0,68395.0,2.00314346]
[1729414031982,0.67585477,68396.0,68395.0,2.00479746]
[1729414032664,0.67593709,68396.0,68395.0,2.00479746]
[1729414033119,0.56630057,68396.0,68395.0,2.00479746]
[1729414033339,0.58786196,68396.0,68395.0,2.00479746]
[1729414042073,0.58786174,68396.0,68395.0,2.00479746]
[1729414043778,0.58868974,68396.0,68395.0,2.00479746]
[1729414043991,0.56712835,68396.0,68395.0,2.00479746]
[1729414046826,0.5671275,68396.0,68395.0,2.00479746]
[1729414047697,0.5671275,68396.0,68395.0,1.95705746]
[1729414048381,0.5671275,68396.0,68395.0,1.91125746]
[1729414048599,0.67676056,68396.0,68395.0,1.91125746]
[1729414048817,0.5671275,68396.0,68395.0,1.91125746]
[1729414049286,0.67675892,68396.0,68395.0,1.86544746]
[1729414049499,0.67675044,68396.0,68395.0,1.86544746]
[1729414049704,0.5671275,68396.0,68395.0,1.86544746]
[1729414049917,0.5671275,68396.0,68395.0,1.82157746]
[1729414050133,0.6767501,68396.0,68395.0,1.82157746]
[1729414050348,0.5671275,68396.0,68395.0,1.77771746]
[1729414051004,0.5671275,68396.0,68395.0,1.73384746]
[1729414051466,0.56710523,68396.0,68395.0,1.68997746]
[1729414051673,0.65480412,68396.0,68395.0,1.68997746]
[1729414051898,0.65480412,68396.0,68395.0,1.64610746]
[1729414052536,0.65480412,68396.0,68395.0,1.60223746]
[1729414056662,0.56710523,68396.0,68395.0,1.60223746]
[1729414057152,0.59010523,68396.0,68395.0,1.60223746]
[1729414058581,0.67777594,68396.0,68395.0,1.60223746]
[1729414059047,0.89685479,68396.0,68395.0,1.60223746]
[1729414059304,0.59010523,68396.0,68395.0,1.60223746]
[1729414060044,0.68490523,68396.0,68395.0,1.60223746]
[1729414060538,0.79452595,68396.0,68395.0,1.60223746]
[1729414060782,0.7944189,68396.0,68395.0,1.60223746]
[1729414061031,0.87249328,68396.0,68395.0,1.60223746]
[1729414061279,0.7944189,68396.0,68395.0,1.60223746]
[1729414061512,0.68484141,68396.0,68395.0,1.60223746]
[1729414068900,0.76714141,68396.0,68395.0,1.60223746]
[1729414070332,0.76709507,68396.0,68395.0,1.60223746]
[1729414075173,0.76709111,68396.0,68395.0,1.60223746]
[1729414077019,0.91605026,68396.0,68395.0,1.60223746]
[1729414081661,0.96102809,68396.0,68395.0,1.60223746]
[1729414083119,0.81208263,68396.0,68395.0,1.53807747]
[1729414083272,0.7671048,68396.0,68395.0,1.53807747]
[1729414083471,0.7671048,68396.0,68395.0,1.44866748]
[1729414083472,0.87666015,68396.0,68395.0,1.44866748]
[1729414084489,0.87667117,68396.0,68395.0,1.40839748]
[1729414084682,0.87667117,68396.0,68395.0,1.39349748]
[1729414085137,0.76711295,68396.0,68395.0,1.25604749]
[1729414085573,0.89591395,68396.0,68395.0,1.10977161]
[1729414085722,0.76711295,68396.0,68395.0,1.10977161]
[1729414087933,0.76712113,68396.0,68395.0,1.10977161]
[1729414088636,0.76712113,68396.0,68395.0,1.10119355]
[1729414089799,0.68482113,68396.0,68395.0,1.10119355]
[1729414092735,0.68483469,68396.0,68395.0,1.10119355]
[1729414095051,0.79440763,68396.0,68395.0,1.10119355]
[1729414095570,0.81941216,68396.0,68395.0,1.10119355]
[1729414097248,0.8643977,68396.0,68395.0,1.10119355]
[1729414097458,0.99588523,68396.0,68395.0,1.10119355]
[1729414098257,0.8643977,68396.0,68395.0,1.10119355]
[1729414105319,0.995806,68396.0,68395.0,1.10119355]
[1729414106916,0.86429396,68396.0,68395.0,1.10119355]
[1729414108860,0.86629396,68396.0,68395.0,1.10119355]
[1729414110286,0.99768704,68396.0,68395.0,1.10119355]
[1729414111614,0.99767048,68396.0,68395.0,1.10119355]
[1729414116535,0.997673,68396.0,68395.0,1.10119355]
[1729414116738,0.997673,68396.0,68395.0,1.09749255]
[1729414117790,0.86628062,68396.0,68395.0,1.09749255]
[1729414118278,0.99767139,68396.0,68395.0,1.09749255]
[1729414121055,0.99767077,68396.0,68395.0,1.09749255]
[1729414124773,0.99767374,68396.0,68395.0,1.09749255]
[1729414125651,0.86627939,68396.0,68395.0,1.09749255]
[1729414128850,0.99768164,68396.0,68395.0,1.09749255]
[1729414129254,0.86627939,68396.0,68395.0,1.09749255]
[1729414130576,0.86629907,68396.0,68395.0,1.09749255]
[1729414133305,0.86429907,68396.0,68395.0,1.09749255]
[1729414133535,0.86629907,68396.0,68395.0,1.09749255]
[1729414137020,0.8106216,68396.0,68395.0,1.09749255]
[1729414140008,0.81071562,68396.0,68395.0,1.09749255]
[1729414141965,0.72310069,68396.0,68395.0,1.09749255]
[1729414143357,0.72315803,68396.0,68395.0,1.09749255]
[1729414144873,0.72315816,68396.0,68395.0,1.09749255]
[1729414147408,0.64225816,68396.0,68395.0,1.09749255]
[1729414152111,0.68725248,68396.0,68395.0,1.09749255]
[1729414157584,0.68724649,68396.0,68395.0,1.09749255]
[1729414162426,0.68724707,68396.0,68395.0,1.09749255]
[1729414167219,0.68724862,68396.0,68395.0,1.09749255]
[1729414175294,0.6789615,68396.0,68395.0,1.09749255]
[1729414175496,0.72394348,68396.0,68395.0,1.09749255]
[1729414175713,0.59243628,68396.0,68395.0,1.09749255]
[1729414175928,0.72393403,68396.0,68395.0,1.09749255]
[1729414176868,0.72389,68396.0,68395.0,1.09749255]
[1729414177329,0.59239576,68396.0,68395.0,1.09749255]
[1729414179976,0.72388807,68396.0,68395.0,1.09749255]
[1729414180200,0.67890609,68396.0,68395.0,1.09749255]
[1729414180422,0.72388512,68396.0,68395.0,1.09749255]
[1729414180868,0.67890609,68396.0,68395.0,1.09749255]
[1729414181321,0.72388518,68396.0,68395.0,1.09749255]
[1729414181572,0.67889202,68396.0,68395.0,1.09749255]
[1729414182031,0.72387045,68396.0,68395.0,1.09749255]
[1729414182375,0.67889202,68396.0,68395.0,1.09749255]
[1729414182821,0.72386973,68396.0,68395.0,1.09749255]
[1729414183029,0.67889202,68396.0,68395.0,1.09749255]
[1729414183666,0.72386936,68396.0,68395.0,1.09749255]
[1729414184334,0.67889202,68396.0,68395.0,1.09749255]
[1729414185225,0.81476775,68396.0,68395.0,1.09749255]
[1729414186105,0.81474877,68396.0,68395.0,1.09749255]
[1729414190435,0.68327011,68396.0,68395.0,1.09749255]
[1729414190892,0.6832698,68396.0,68395.0,1.09749255]
[1729414191127,0.81475451,68396.0,68395.0,1.09749255]
[1729414191339,0.76977878,68396.0,68395.0,1.09749255]
[1729414191762,0.63829407,68396.0,68395.0,1.08297517]
[1729414197958,0.64925581,68396.0,68395.0,1.08297517]
[1729414199241,0.79821496,68396.0,68395.0,1.08297517]
[1729414200876,0.64925581,68396.0,68395.0,1.08297517]
[1729414201817,0.81477416,68396.0,68395.0,1.08297517]
[1729414202060,0.82573742,68396.0,68395.0,1.08297517]
[1729414203720,0.82583034,68396.0,68395.0,1.08297517]
[1729414204855,0.53247264,68396.0,68395.0,1.08297517]
[1729414205062,0.69430398,68396.0,68395.0,1.08297517]
[1729414205266,0.82582452,68396.0,68395.0,1.08297517]
[1729414205651,0.69430398,68396.0,68395.0,1.08297517]
[1729414208526,0.69431235,68396.0,68395.0,1.08297517]
[1729414210664,0.88348341,68396.0,68395.0,1.07500639]
[1729414210872,1.00768591,68396.0,68395.0,1.07500639]
[1729414211075,0.87615203,68396.0,68395.0,1.07500639]
[1729414211710,0.87815203,68396.0,68395.0,1.07500639]
[1729414212332,0.87815035,68396.0,68395.0,1.07500639]
[1729414212767,0.77551779,68396.0,68395.0,1.07500639]
[1729414213176,0.77551549,68396.0,68395.0,1.07500639]
[1729414215519,0.78351549,68396.0,68395.0,1.07500639]
[1729414215917,0.78351251,68396.0,68395.0,1.07500639]
[1729414216747,0.86601816,68396.0,68395.0,1.06193813]
[1729414217181,0.86901816,68396.0,68395.0,1.06193813]
[1729414217432,0.86901725,68396.0,68395.0,1.06193813]
[1729414217640,0.86601725,68396.0,68395.0,1.06193813]
[1729414217844,0.91099896,68396.0,68395.0,1.06193813]
[1729414218063,0.91499896,68396.0,68395.0,1.06193813]
[1729414218732,0.86601725,68396.0,68395.0,1.06193813]
[1729414218961,0.86201725,68396.0,68395.0,1.06193813]
[1729414219855,0.98740113,68396.0,68395.0,1.06193813]
[1729414220063,0.98540113,68396.0,68395.0,1.06193813]
[1729414220270,0.98840113,68396.0,68395.0,1.06193813]
[1729414220495,0.99040113,68396.0,68395.0,1.06193813]
[1729414220741,0.90387024,68396.0,68395.0,1.06193813]
[1729414220962,2.04618795,68396.0,68395.0,0.51494506]
[1729414221183,2.04618795,68396.0,68395.0,0.51263604]
[1729414221184,2.00757079,68396.0,68395.0,0.51263604]
[1729414221395,2.10256301,68396.0,68395.0,0.50609635]
[1729414221610,2.14646206,68396.0,68395.0,0.50609635]
[1729414221806,1.97006825,68396.0,68395.0,0.35988635]
[1729414225102,1.97006825,68396.0,68395.0,0.23022818]
[1729414225434,1.97005201,68396.0,68395.0,0.23022818]
[1729414226258,1.95911056,68396.0,68395.0,0.23022818]
[1729414226616,1.9700525,68396.0,68395.0,0.23022818]
[1729414227264,1.96980001,68396.0,68395.0,0.23022818]
[1729414227646,1.96780001,68396.0,68395.0,0.23022818]
[1729414227797,1.96980001,68396.0,68395.0,0.23022818]
[1729414229053,1.96980001,68396.0,68395.0,0.16141041]
[1729414229285,1.81884086,68396.0,68395.0,0.16141041]
[1729414229498,1.73964086,68396.0,68395.0,0.16141041]
[1729414229705,1.73069892,68396.0,68395.0,0.16141041]
[1729414229930,1.74163843,68396.0,68395.0,0.16141041]
[1729414230139,1.88859758,68396.0,68395.0,0.16141041]
[1729414230775,1.97149758,68396.0,68395.0,0.15132226]
[1729414231816,1.97146918,68396.0,68395.0,0.15132226]
[1729414235038,1.97146918,68396.0,68395.0,0.09283826]
[1729414235344,1.97146918,68396.0,68395.0,0.00511226]
[1729414235680,1.97146918,68396.0,68395.0,2.6e-07]
[1729414238630,0.002,68393.0,68392.0,2.6e-07]
[1729414238834,0.91376714,68393.0,68392.0,2.6e-07]
[1729414239039,1.07532366,68393.0,68392.0,2.6e-07]
[1729414239857,1.07632366,68393.0,68392.0,2.6e-07]
[1729414240344,1.07732366,68393.0,68392.0,2.6e-07]
[1729414240541,1.22628281,68393.0,68392.0,2.6e-07]
[1729414241383,1.22625279,68393.0,68392.0,2.6e-07]
[1729414243440,2.20885279,68393.0,68392.0,2.6e-07]